bitfinex/quotes_ETHUSD_20240825
["timestamp","ask_amount","ask_price","bid_price","bid_amount"]
[1724573125983,3.0,2747.5,2747.0,3.64026]
[1724573126125,0.62825872,2747.5,2746.9,3.64038]
[1724573126335,4.26802872,2747.5,2746.9,7.28077]
[1724573126536,4.26802872,2747.5,2746.9,3.64038]
[1724573127225,7.46,2747.7,2747.1,3.64012]
[1724573127429,7.46,2747.7,2747.1,7.35303515]
[1724573127630,7.46,2747.7,2747.2,0.07279515]
[1724573127874,12.21,2748.1,2747.5,3.63967]
[1724573127875,3.63889,2748.1,2747.5,3.63967]
[1724573128024,3.63871,2748.3,2747.7,3.63939]
[1724573128229,0.363871,2748.2,2747.7,3.63939]
[1724573129172,4.002621,2748.2,2747.5,3.63956]
[1724573129385,4.002621,2748.2,2747.5,7.27914]
[1724573129543,0.363871,2748.2,2747.6,3.63951]
[1724573130082,4.002631,2748.2,2747.6,3.63951]
[1724573130230,0.363871,2748.2,2747.6,3.63951]
[1724573130426,7.27742,2748.3,2747.6,3.63951]
[1724573130631,3.63875,2748.2,2747.6,3.63951]
[1724573130943,3.63871,2748.3,2747.6,3.63951]
[1724573131271,7.27744,2748.3,2747.6,3.63951]
[1724573131986,3.63871,2748.3,2747.6,3.63951]
[1724573132161,3.63871,2748.3,2747.7,0.363951]
[1724573132476,3.63871,2748.3,2747.7,2.844951]
[1724573133365,3.63876,2748.2,2747.7,2.844951]
[1724573133599,3.63892,2748.1,2747.5,3.63966]
[1724573133908,3.63871,2748.3,2747.6,3.6395]
[1724573135609,6.71788065,2748.5,2747.7,6.19315932]
[1724573135809,10.35634065,2748.5,2747.8,0.07277694]
[1724573135983,6.71788065,2748.5,2747.8,0.07277694]
[1724573136723,3.63862,2748.3,2747.7,3.46425993]
[1724573136867,3.63862,2748.3,2747.7,2.481]
[1724573137810,3.63862,2748.3,2747.4,3.63974]
[1724573138120,6.10713,2748.2,2747.5,2.481]
[1724573138283,2.4683,2748.2,2747.5,6.12064]
[1724573139424,3.63862,2748.3,2747.5,6.12064]
[1724573139630,3.63862,2748.3,2747.6,0.976035]
[1724573140896,3.63862,2748.3,2747.6,8.254995]
[1724573141118,11.09821,2748.6,2747.7,2.3434]
[1724573141442,3.63848,2748.4,2747.7,5.98277]
[1724573144418,3.63895,2748.1,2747.4,2.3434]
[1724573144824,9.18625065,2748.2,2747.4,5.98317]
[1724573145235,6.10675,2748.2,2747.5,3.63964]
[1724573145840,3.63885,2748.2,2747.5,3.63958]
[1724573146156,7.27713,2748.4,2747.6,3.63952]
[1724573146354,3.63854,2748.4,2747.7,0.72791]
[1724573146657,3.6387,2748.3,2747.7,0.72791]
[1724573146809,3.63876,2748.2,2747.5,3.63958]
[1724573147010,3.63876,2748.2,2747.5,7.27917]
[1724573147312,3.63854,2748.4,2747.8,2.3434]
[1724573147625,5.54740065,2748.5,2747.8,2.3434]
[1724573148622,3.63848,2748.4,2747.8,2.3434]
[1724573148823,3.63848,2748.4,2747.9,0.598271]
[1724573149038,3.63848,2748.4,2747.8,2.3434]
[1724573149039,7.27705,2748.4,2747.8,2.3434]
[1724573149433,3.63875,2748.2,2747.5,2.3434]
[1724573149612,6.71825065,2748.2,2747.5,2.3434]
[1724573149819,3.63896,2748.1,2747.5,2.3434]
[1724573150258,3.63904,2748.0,2747.5,2.3434]
[1724573150525,3.63904,2748.0,2747.5,2.941726]
[1724573150759,3.63904,2748.0,2747.5,0.598326]
[1724573150928,3.63936,2747.8,2747.2,2.3434]
[1724573151134,6.71828065,2748.2,2747.2,2.3434]
[1724573151329,6.71828065,2748.2,2747.6,2.3434]
[1724573152247,3.63854,2748.4,2747.6,2.3434]
[1724573152464,3.63854,2748.4,2747.7,3.63933]
[1724573152823,11.09827,2748.6,2747.8,0.07277323]
[1724573153073,11.09827,2748.6,2747.8,2.3434]
[1724573153273,11.09827,2748.6,2747.9,4.237381]
[1724573153626,11.09827,2748.6,2747.9,4.237321]
[1724573154458,3.63834,2748.5,2747.9,4.237321]
[1724573154772,3.63834,2748.5,2747.9,0.598271]
[1724573156487,11.09827,2748.6,2747.9,4.237321]
[1724573156695,7.46,2748.6,2748.1,2.3313]
[1724573156872,10.35553065,2748.8,2748.1,2.3313]
[1724573157040,3.63811,2748.7,2748.1,2.3313]
[1724573157775,3.63836,2748.5,2748.0,1.0219981]
[1724573157970,3.63836,2748.5,2747.9,2.929571]
[1724573158689,3.63856,2748.4,2747.9,2.929571]
[1724573158898,3.63864,2748.3,2747.9,2.929571]
[1724573159189,3.63888,2748.1,2747.7,7.34]
[1724573159492,6.71831065,2748.2,2747.7,7.34]
[1724573160191,3.63914,2747.9,2747.7,7.34]
[1724573160389,3.63914,2747.9,2747.4,2.3313]
[1724573160594,3.63914,2747.9,2747.4,2.951862]
[1724573161661,6.08149,2748.1,2747.4,2.951862]
[1724573161662,3.63901,2748.0,2747.4,2.951862]
[1724573161881,6.71832065,2748.2,2747.4,6.591662]
[1724573162062,6.71832065,2748.2,2747.4,6.591582]
[1724573162262,3.07950065,2748.2,2747.4,6.591582]
[1724573162465,3.07950065,2748.2,2747.5,0.6825922]
[1724573162666,3.63908,2748.0,2747.4,2.3313]
[1724573162882,7.27796,2748.1,2747.4,2.3313]
[1724573163790,3.63898,2748.1,2747.4,2.3313]
[1724573164001,3.63941,2747.7,2747.4,2.3313]
[1724573164159,2.2949,2747.8,2747.1,13.42001]
[1724573164359,2.2949,2747.8,2747.2,1.342001]
[1724573164588,3.63908,2748.0,2747.2,4.981991]
[1724573164768,3.63916,2747.9,2747.2,4.981991]
[1724573166006,3.63928,2747.8,2747.2,1.342001]
[1724573166307,2.2949,2747.7,2747.1,2.4399]
[1724573166449,3.63962,2747.6,2747.1,2.4399]
[1724573166901,3.63933,2747.8,2747.1,6.08009]
[1724573168685,3.63933,2747.8,2747.1,9.7202]
[1724573169012,3.63895,2748.1,2747.4,3.63977]
[1724573169212,3.63895,2748.1,2747.3,6.07974]
[1724573169213,3.63901,2748.0,2747.3,6.07974]
[1724573169411,3.63915,2747.9,2747.3,2.4399]
[1724573169801,3.63895,2748.1,2747.3,6.07976]
[1724573170015,3.63895,2748.1,2747.4,3.63979]
[1724573170220,7.27793,2748.1,2747.5,0.971955]
[1724573170489,3.63864,2748.3,2747.6,6.15214581]
[1724573170686,3.63864,2748.3,2747.6,6.07936]
[1724573170896,3.63848,2748.4,2747.7,3.71214831]
[1724573171099,3.63848,2748.4,2747.8,0.07277629]
[1724573171384,5.93279,2748.9,2748.1,3.63887]
[1724573171622,3.63812,2748.7,2747.9,9.71804]
[1724573171945,3.63834,2748.5,2747.9,2.4399]
[1724573176859,3.63813,2748.7,2747.9,6.07903]
[1724573177736,3.63809,2748.7,2748.0,2.4399]
[1724573177916,3.07950065,2748.8,2748.1,4.246663]
[1724573178121,6.71745065,2748.8,2748.1,4.246663]
[1724573178518,3.63795,2748.8,2748.1,7.885453]
[1724573178746,3.63795,2748.8,2748.1,4.246663]
[1724573180097,3.63795,2748.8,2748.1,7.885443]
[1724573180397,3.63831,2748.6,2748.1,0.607903]
[1724573180706,3.63836,2748.5,2747.9,2.4399]
[1724573181056,3.63831,2748.6,2747.9,2.4399]
[1724573181057,3.63848,2748.4,2747.9,2.4399]
[1724573182812,7.27661,2748.6,2747.9,2.4399]
[1724573182978,7.27661,2748.6,2747.9,3.411747]
[1724573183604,3.63801,2748.8,2748.1,3.6388]
[1724573183886,3.63801,2748.8,2748.2,2.3658]
[1724573184096,11.09783,2748.9,2748.2,6.00448]
[1724573184380,11.09783,2748.9,2748.3,0.964328]
[1724573185619,3.63746,2749.2,2748.5,6.00406]
[1724573185977,3.63746,2749.2,2748.5,2.3658]
[1724573186244,4.55096607,2749.2,2748.5,2.3658]
[1724573186473,3.63746,2749.2,2748.5,2.3658]
[1724573186812,3.63746,2749.2,2748.5,9.64231]
[1724573187001,3.63746,2749.2,2748.5,6.00404]
[1724573188373,3.63746,2749.2,2748.5,9.6423]
[1724573188639,10.35396065,2749.4,2748.5,6.00404]
[1724573188774,3.63719,2749.4,2748.6,0.600404]
[1724573189095,3.63719,2749.4,2748.7,2.3658]
[1724573190015,3.63719,2749.4,2748.7,6.00387]
[1724573190519,6.63698,2749.6,2748.9,2.3658]
[1724573190690,3.0,2749.6,2749.0,0.600366]
[1724573190895,7.27373,2749.7,2749.0,0.600366]
[1724573191106,0.1315729,2749.9,2749.0,0.600366]
[1724573191107,3.7681329,2749.9,2749.1,2.43854194]
[1724573191310,3.7681329,2749.9,2749.1,3.10619873]
[1724573191624,7.4047429,2749.9,2749.1,3.03345679]
[1724573191827,3.7681329,2749.9,2749.1,6.67092679]
[1724573191998,3.7681329,2749.9,2749.2,2.3658]
[1724573192190,3.63664,2749.8,2749.2,2.3658]
[1724573192519,3.63664,2749.8,2749.3,0.30334568]
[1724573192732,0.1315729,2749.9,2749.4,2.3658]
[1724573192877,0.1315729,2749.9,2749.8,7.27324]
[1724573193082,0.1315729,2749.9,2749.8,10.18904]
[1724573195526,0.1315729,2749.9,2749.8,6.00242]
[1724573195680,0.1315729,2749.9,2749.8,6.602662]
[1724573197275,0.1315729,2749.9,2749.8,10.239282]
[1724573197482,0.1315729,2749.9,2749.8,10.789282]
[1724573200006,0.1315729,2749.9,2749.8,7.152662]
[1724573200208,0.1315729,2749.9,2749.8,10.789282]
[1724573200412,0.1315729,2749.9,2749.8,6.602662]
[1724573200800,0.1315729,2749.9,2749.8,2.966042]
[1724573201284,0.1315729,2749.9,2749.8,2.3658]
[1724573202031,0.1315729,2749.9,2749.8,6.00242]
[1724573203183,0.1315729,2749.9,2749.8,9.63904]
[1724573203384,0.1315729,2749.9,2749.8,10.18904]
[1724573204946,0.1315729,2749.9,2749.8,13.82566]
[1724573205169,0.1315729,2749.9,2749.8,18.208226]
[1724573206079,0.1315729,2749.9,2749.8,14.571606]
[1724573213783,0.1315729,2749.9,2749.8,18.208226]
[1724573221812,0.1315729,2749.9,2749.8,28.75834665]
[1724573221966,2.3713,2751.3,2750.8,3.6352]
[1724573222165,2.3713,2751.3,2750.9,0.36352]
[1724573222366,2.3713,2751.3,2750.9,3.99866]
[1724573222611,2.3713,2751.3,2751.0,3.63497]
[1724573222812,2.3713,2751.6,2751.1,3.63488]
[1724573222960,2.3713,2751.6,2751.2,3.63475]
[1724573223160,2.3713,2751.6,2751.1,3.63488]
[1724573223361,2.3713,2751.6,2751.2,0.363488]
[1724573223666,3.63391,2751.9,2751.2,0.363488]
[1724573223667,6.00497,2752.1,2751.4,3.63438]
[1724573223896,6.00497,2752.1,2751.2,3.998188]
[1724573223897,2.3713,2752.1,2751.2,3.998148]
[1724573224070,2.3713,2752.1,2751.4,3.63439]
[1724573224419,7.26764,2752.0,2751.2,3.998168]
[1724573224638,2.3713,2751.9,2751.0,3.0]
[1724573224916,2.3713,2751.5,2751.0,6.63502]
[1724573225326,2.3713,2751.5,2751.0,6.63495]
[1724573225822,2.3713,2751.5,2751.0,3.0]
[1724573226109,2.3713,2751.5,2750.9,7.34]
[1724573226110,3.63459,2751.4,2750.9,7.34]
[1724573226816,2.3713,2751.5,2750.9,10.97516]
[1724573226974,2.3713,2751.5,2751.0,3.63496]
[1724573227612,2.3713,2751.5,2750.9,10.97516]
[1724573227813,2.3713,2751.5,2750.9,12.436213]
[1724573228013,2.3713,2751.5,2750.9,12.436143]
[1724573228212,2.3713,2751.9,2751.2,3.63468]
[1724573228597,2.3713,2751.9,2751.4,3.63445]
[1724573228799,2.3713,2751.9,2751.4,3.63438]
[1724573228997,13.46481,2752.2,2751.5,3.997708]
[1724573229226,6.00481,2752.2,2751.5,3.997708]
[1724573229590,2.3713,2752.2,2751.5,3.997708]
[1724573230726,2.3713,2752.2,2751.7,3.63403]
[1724573230898,2.3713,2752.2,2751.8,3.63396]
[1724573231082,2.60843,2752.2,2751.5,3.63427]
[1724573231286,2.3713,2752.0,2751.3,3.63454]
[1724573232028,3.63389,2751.9,2751.1,7.26966]
[1724573232188,3.63389,2751.9,2751.2,3.0]
[1724573232591,3.63389,2751.9,2751.1,3.63481]
[1724573232915,3.63389,2751.9,2751.1,8.39661738]
[1724573233098,3.63389,2751.9,2751.2,3.63469]
[1724573233300,3.634,2751.8,2751.1,4.76180738]
[1724573233484,2.3713,2751.7,2751.1,1.12699738]
[1724573233926,2.3713,2751.7,2751.1,4.76184738]
[1724573234486,2.3713,2751.7,2750.9,12.436123]
[1724573234694,2.3713,2751.5,2750.7,3.63536]
[1724573234931,2.3713,2751.5,2750.9,3.6351]
[1724573235233,3.63412,2751.7,2751.0,3.63503]
[1724573235401,3.63412,2751.7,2751.0,3.63413663]
[1724573235584,7.2686,2751.6,2750.8,3.63521]
[1724573235790,6.00569,2751.5,2750.8,3.63521]
[1724573236035,2.3713,2751.5,2750.8,3.63521]
[1724573236355,2.3713,2751.5,2750.9,3.63509]
[1724573236520,3.63452,2751.4,2750.7,3.63533]
[1724573236707,4.598528,2751.4,2750.7,3.63533]
[1724573238349,8.233138,2751.4,2750.7,3.63533]
[1724573238841,4.598528,2751.4,2750.7,3.63533]
[1724573240361,4.598528,2751.4,2750.7,7.27069]
[1724573240561,3.63464,2751.3,2750.6,7.34]
[1724573240762,0.964008,2751.4,2750.8,3.63521]
[1724573240942,6.00579,2751.5,2750.8,3.63521]
[1724573241789,6.00579,2751.5,2750.7,7.27077]
[1724573242133,6.00579,2751.5,2750.8,3.63529]
[1724573242815,9.64029,2751.5,2750.7,3.63536]
[1724573243018,3.63455,2751.4,2750.7,3.63536]
[1724573243309,3.63465,2751.3,2750.6,8.737559]
[1724573243610,3.63485,2751.2,2750.6,7.34]
[1724573243964,3.63465,2751.3,2750.6,10.97555]
[1724573244311,2.3713,2751.5,2750.6,10.97555]
[1724573244312,6.00573,2751.5,2750.7,3.63535]
[1724573244457,6.00573,2751.5,2750.8,3.63528]
[1724573244658,6.00573,2751.5,2750.8,4.362355]
[1724573245280,0.23713,2752.2,2751.0,3.63499]
[1724573245281,2.4803,2751.8,2751.0,3.63499]
[1724573245565,3.63251,2753.0,2750.9,2.3071]
[1724573245566,2.4803,2752.0,2751.4,3.63438]
[1724573245828,3.63348,2752.2,2751.4,3.63438]
[1724573245959,3.63348,2752.2,2751.4,5.94148]
[1724573246162,3.63348,2752.2,2751.6,3.63423]
[1724573246485,3.63348,2752.2,2751.5,0.594148]
[1724573246902,2.4803,2752.3,2751.6,3.63423]
[1724573247106,2.4803,2752.3,2751.7,3.63411]
[1724573247566,2.4803,2752.3,2751.6,3.63423]
[1724573247764,6.11371,2752.3,2751.6,3.63423]
[1724573248016,2.4803,2752.3,2751.6,8.2853918]
[1724573248181,6.11366,2752.3,2751.6,4.6511618]
[1724573248369,6.11366,2752.3,2751.6,3.63417]
[1724573248961,2.4803,2752.3,2751.6,3.63417]
[1724573249361,2.4803,2752.3,2751.6,3.63416]
[1724573249564,2.4803,2752.3,2751.6,7.26833]
[1724573250001,2.4803,2752.3,2751.7,3.6341]
[1724573250220,2.4803,2752.3,2751.8,0.726826]
[1724573251728,3.7645529,2752.6,2751.9,0.0726695]
[1724573251901,0.1315729,2752.6,2752.0,2.3071]
[1724573252100,0.1315729,2752.6,2752.1,0.07266131]
[1724573252430,0.1315729,2752.6,2752.5,13.20628]
[1724573252587,0.1315729,2752.6,2752.5,16.75628]
[1724573253754,0.1315729,2752.6,2752.5,13.12322]
[1724573254631,0.1315729,2752.6,2752.5,10.81612]
[1724573255202,0.1315729,2752.6,2752.5,13.12322]
[1724573255403,0.1315729,2752.6,2752.5,14.798867]
[1724573255946,0.1315729,2752.6,2752.5,14.248867]
[1724573256648,0.1315729,2752.6,2752.5,11.941767]
[1724573256957,0.1315729,2752.6,2752.5,5.308707]
[1724573257119,0.1315729,2752.6,2752.5,7.26612]
[1724573257519,0.1315729,2752.6,2752.5,9.71642]
[1724573259322,0.1315729,2752.6,2752.5,10.26642]
[1724573260458,0.1315729,2752.6,2752.5,13.89948]
[1724573260612,0.1315729,2752.6,2752.5,12.71642]
[1724573260815,0.1315729,2752.6,2752.5,14.538062]
[1724573264354,0.1315729,2752.6,2752.5,12.087762]
[1724573264749,0.1315729,2752.6,2752.5,11.537762]
[1724573266017,0.1315729,2752.6,2752.5,1.271642]
[1724573266215,0.1315729,2752.6,2752.4,3.63318]
[1724573266956,0.1315729,2752.6,2752.4,3.63311]
[1724573267133,0.1315729,2752.6,2752.5,7.26612]
[1724573268331,0.1315729,2752.6,2752.5,7.81612]
[1724573268531,0.1315729,2752.6,2752.5,14.44918]
[1724573268733,0.1315729,2752.6,2752.5,16.143048]
[1724573269032,0.1315729,2752.6,2752.5,12.509988]
[1724573269336,0.1315729,2752.6,2752.5,11.959988]
[1724573269558,0.1315729,2752.6,2752.5,5.326928]
[1724573269746,0.1315729,2752.6,2752.3,3.63324]
[1724573270460,0.1315729,2752.6,2752.2,0.23797613]
[1724573270617,2.3054,2752.5,2751.8,7.34]
[1724573270822,5.93854,2752.5,2751.8,3.63397]
[1724573271174,5.93854,2752.5,2751.9,3.63383]
[1724573271769,2.3054,2752.5,2751.9,3.63383]
[1724573271977,2.3054,2752.5,2752.1,3.6335]
[1724573272176,2.3054,2752.5,2751.9,3.63379]
[1724573272666,2.3054,2752.5,2752.0,3.6337]
[1724573273091,2.3054,2752.5,2752.1,3.63355]
[1724573273395,2.3054,2752.5,2752.1,3.63351]
[1724573273695,0.1315729,2752.6,2752.2,0.363351]
[1724573274568,0.1315729,2752.6,2752.2,3.996801]
[1724573276041,0.1315729,2752.6,2752.2,0.363351]
[1724573276237,0.1315729,2752.6,2752.1,3.6335]
[1724573276893,0.1315729,2752.6,2752.2,3.63332]
[1724573277281,0.1315729,2752.6,2752.1,3.6335]
[1724573277502,0.1315729,2752.6,2751.9,3.63382]
[1724573277503,0.1315729,2752.6,2751.9,3.63376]
[1724573278002,0.1315729,2752.6,2752.2,3.63337]
[1724573278168,0.1315729,2752.6,2752.2,4.360074]
[1724573278368,0.1315729,2752.6,2752.4,3.63317]
[1724573279346,0.1315729,2752.6,2752.5,3.63306]
[1724573281033,0.1315729,2752.6,2752.2,4.360064]
[1724573281173,0.1315729,2752.6,2752.2,4.360054]
[1724573281374,0.1315729,2752.6,2752.3,0.4360054]
[1724573282224,0.1315729,2752.6,2752.3,4.0692454]
[1724573282392,0.1315729,2752.6,2752.3,0.4360054]
[1724573282588,2.5284729,2752.6,2752.3,0.4360054]
[1724573283622,2.5284729,2752.6,2752.1,3.63346]
[1724573283837,2.5284729,2752.6,2752.0,10.97363]
[1724573284197,2.5284729,2752.6,2752.1,3.63356]
[1724573284609,2.5284729,2752.6,2752.0,10.97363]
[1724573284827,2.5284729,2752.6,2752.1,1.097363]
[1724573285198,2.5284729,2752.6,2751.8,3.63395]
[1724573285528,2.3969,2752.5,2751.9,3.63381]
[1724573286286,2.3969,2752.5,2751.8,3.63389]
[1724573286490,2.3969,2752.1,2751.6,4.36815]
[1724573286798,2.3969,2752.1,2751.6,0.734]
[1724573287023,2.3969,2752.1,2751.4,7.34]
[1724573287024,3.6338,2752.0,2751.4,7.34]
[1724573287222,2.3969,2752.1,2751.4,3.63448]
[1724573287528,3.63422,2751.7,2751.1,7.34]
[1724573287828,2.3969,2751.8,2751.1,7.34]
[1724573287979,2.3969,2751.8,2751.3,3.63463]
[1724573288483,2.3969,2751.8,2750.9,3.63512]
[1724573288484,7.26838,2751.7,2750.9,3.63512]
[1724573288731,2.3969,2751.8,2751.1,3.6349]
[1724573288985,2.3969,2751.8,2751.3,3.63455]
[1724573289399,2.3969,2751.8,2751.2,0.36349]
[1724573289598,3.63429,2751.6,2750.9,3.6351]
[1724573290448,3.63452,2751.4,2750.7,3.63536]
[1724573290606,2.3969,2751.5,2750.7,3.63536]
[1724573290898,2.3969,2751.5,2751.0,3.63493]
[1724573291103,2.3969,2751.5,2751.1,0.727002]
[1724573291983,2.3969,2751.5,2750.9,3.63509]
[1724573291984,6.03131,2751.5,2750.9,3.63509]
[1724573292497,2.3969,2751.5,2750.5,10.34]
[1724573292707,2.3969,2751.5,2751.0,3.63496]
[1724573292915,2.3969,2751.5,2750.8,3.63524]
[1724573293123,3.63459,2751.4,2750.6,4.18546]
[1724573293299,3.07950065,2751.4,2750.5,7.34]
[1724573293502,3.63492,2751.1,2750.5,10.97567]
[1724573293732,2.3969,2751.0,2750.5,7.34]
[1724573294042,2.3969,2751.0,2750.6,0.734]
[1724573294402,2.3969,2751.0,2750.7,3.63538]
[1724573294926,2.3969,2751.0,2750.6,0.734]
[1724573295344,6.03203,2751.0,2750.6,0.734]
[1724573295552,2.3969,2751.0,2750.6,0.734]
[1724573296159,2.3969,2751.0,2750.7,4.806317]
[1724573296387,2.4302,2751.4,2750.7,4.806317]
[1724573296511,2.4302,2751.4,2750.8,0.07269055]
[1724573296712,9.69835,2751.8,2751.1,3.6349]
[1724573296907,3.63412,2751.7,2751.1,3.6349]
[1724573297410,6.06431,2751.8,2751.1,3.6349]
[1724573297616,6.06431,2751.8,2751.1,4.361816]
[1724573297943,3.63412,2751.7,2751.1,0.726996]
[1724573298150,3.63427,2751.6,2750.9,3.63506]
[1724573298313,3.63451,2751.4,2750.8,3.63527]
[1724573298657,2.4302,2751.5,2750.8,3.63527]
[1724573299132,6.06459,2751.5,2750.8,3.63527]
[1724573299289,2.4302,2751.5,2750.9,4.4792507]
[1724573300138,2.4302,2751.5,2750.9,8.1143407]
[1724573300339,2.4302,2751.5,2751.1,3.6349]
[1724573300649,2.4302,2751.5,2750.9,4.4792507]
[1724573300876,2.4302,2751.5,2750.7,4.806337]
[1724573301083,2.4302,2751.5,2750.9,3.63517]
[1724573301385,6.06462,2751.5,2750.7,8.441627]
[1724573302045,6.06462,2751.5,2750.8,3.63526]
[1724573302245,6.06462,2751.5,2750.9,3.63515]
[1724573302440,2.4302,2751.5,2751.0,0.363515]
[1724573304353,2.4302,2751.5,2751.0,3.998545]
[1724573304649,2.3944,2751.8,2751.2,3.63476]
[1724573304846,6.02849,2751.8,2751.1,3.63478]
[1724573305092,9.66257,2751.8,2751.1,3.63478]
[1724573305301,6.02848,2751.8,2751.1,3.63478]
[1724573305515,3.6342,2751.7,2751.0,0.363515]
[1724573305678,3.07950065,2751.9,2750.6,3.0]
[1724573305679,3.63459,2751.4,2750.7,3.63535]
[1724573306505,3.63447,2751.5,2750.8,3.63529]
[1724573306922,2.3944,2751.6,2751.1,3.63489]
[1724573307217,2.3944,2751.6,2751.2,0.43617459]
[1724573307361,2.3944,2751.6,2751.3,3.63456]
[1724573307568,2.3944,2752.0,2751.3,3.70724454]
[1724573308821,3.63395,2751.9,2751.2,0.363489]
[1724573308974,3.63395,2751.9,2751.1,3.6349]
[1724573309169,3.63419,2751.7,2751.1,3.6349]
[1724573309374,2.3944,2751.6,2751.1,3.6349]
[1724573309986,3.63395,2751.9,2751.1,3.63481]
[1724573310181,3.634,2751.8,2751.1,3.63481]
[1724573310402,3.634,2751.8,2751.2,0.363481]
[1724573311734,2.3944,2752.0,2751.2,0.363481]
[1724573311987,2.3944,2752.0,2751.3,3.70731421]
[1724573312194,3.63366,2752.1,2751.5,3.63437]
[1724573312439,7.26735,2752.1,2751.5,0.07267837]
[1724573312733,3.63394,2751.9,2751.3,3.63455]
[1724573312946,6.0284,2751.8,2751.2,0.363481]
[1724573313238,1.61020081,2752.1,2751.2,0.363481]
[1724573313239,6.02803,2752.1,2751.4,3.63451]
[1724573313451,6.02803,2752.1,2751.5,0.43612996]
[1724573313593,6.02803,2752.1,2751.3,2.3628]
[1724573313791,3.6338,2752.0,2751.3,5.99733]
[1724573314207,3.6338,2752.0,2751.3,3.63453]
[1724573314382,2.3944,2752.1,2751.6,3.63423]
[1724573314662,6.02758,2752.5,2751.7,7.631443]
[1724573314868,6.02758,2752.5,2751.7,3.997423]
[1724573315515,6.02757,2752.5,2751.7,7.631433]
[1724573315747,6.02757,2752.5,2751.7,3.997423]
[1724573315946,6.02757,2752.5,2751.8,4.2699923]
[1724573316150,2.3944,2752.5,2751.7,0.363423]
[1724573316361,6.21107355,2752.6,2751.5,7.34]
[1724573316362,3.63393,2751.9,2751.5,7.34]
[1724573316565,3.63393,2751.9,2751.2,3.63464]
[1724573316878,3.63383,2752.0,2751.2,3.63464]
[1724573317220,3.63383,2752.0,2751.3,3.63463]
[1724573317463,3.63383,2752.0,2751.3,4.361557]
[1724573317777,3.6339,2751.9,2751.0,10.34]
[1724573318787,2.2611,2751.6,2751.0,8.074]
[1724573318951,2.2611,2751.6,2751.0,11.70904]
[1724573320495,5.89536,2751.6,2751.0,11.70904]
[1724573321051,2.2611,2751.6,2751.1,3.63482]
[1724573321361,2.2611,2751.6,2751.2,1.534386]
[1724573321896,2.2611,2751.6,2751.0,4.36895]
[1724573322702,5.92229,2751.8,2751.0,4.36895]
[1724573322855,3.63373,2752.0,2751.4,3.6345]
[1724573323056,2.2883,2752.1,2751.4,3.6345]
[1724573323289,5.92198,2752.1,2751.4,3.6345]
[1724573323467,5.92198,2752.1,2751.4,3.63441]
[1724573323671,2.2883,2752.1,2751.5,3.997711]
[1724573323972,7.46,2752.2,2751.6,3.63415]
[1724573324199,7.46,2752.2,2751.6,5.90035]
[1724573324607,7.46,2752.2,2751.7,3.63408]
[1724573324907,19.05405355,2752.6,2751.8,3.63386]
[1724573324908,0.1315729,2752.6,2751.8,3.63386]
[1724573325118,0.1315729,2752.6,2752.0,3.63362]
[1724573325604,3.7645529,2752.6,2751.9,0.363386]
[1724573325769,3.63334,2752.3,2751.6,13.24039]
[1724573325970,3.63323,2752.4,2751.6,7.34]
[1724573326908,3.63323,2752.4,2751.6,10.97416]
[1724573327409,3.63347,2752.2,2751.6,10.97416]
[1724573329262,3.63334,2752.3,2751.6,14.6083]
[1724573329461,3.63323,2752.4,2751.7,1.4971741]
[1724573329719,3.63323,2752.4,2751.7,5.1312741]
[1724573330401,3.63336,2752.3,2751.7,1.4971741]
[1724573330715,3.63323,2752.4,2751.7,5.1311941]
[1724573330892,5.92139,2752.5,2751.8,4.51043641]
[1724573331406,5.92139,2752.5,2751.8,8.14432641]
[1724573331704,5.92139,2752.5,2751.8,4.51042641]
[1724573331910,3.63319,2752.4,2751.8,4.51042641]
[1724573332390,3.63319,2752.4,2751.8,0.87653641]
[1724573332391,3.63335,2752.3,2751.8,0.87653641]
[1724573332597,3.63335,2752.3,2751.6,3.63416]
[1724573332979,2.2891,2751.8,2751.2,0.7597709]
[1724573333207,3.07950065,2751.9,2751.3,3.63456]
[1724573334222,6.71340065,2751.9,2751.3,3.63456]
[1724573335009,3.63406,2751.8,2751.2,2.401]
[1724573336508,6.71335065,2751.9,2751.2,2.401]
[1724573336717,6.71335065,2751.9,2751.3,3.6346]
[1724573337466,3.63385,2751.9,2751.3,3.6346]
[1724573340313,5.92273,2752.1,2751.4,3.63442]
[1724573340963,3.63374,2752.0,2751.3,4.601564]
[1724573341470,3.63374,2752.0,2751.3,8.236114]
[1724573341621,3.63374,2752.0,2751.4,3.6345]
[1724573341947,3.63337,2752.3,2751.5,3.70704807]
[1724573342155,3.63346,2752.2,2751.6,6.07994]
[1724573343436,5.96749,2752.4,2751.7,3.63407]
[1724573343615,3.63307,2752.5,2751.9,3.6338]
[1724573343820,3.7645529,2752.6,2752.0,2.4457]
[1724573344265,3.7645529,2752.6,2751.7,6.07972]
[1724573344266,2.3343,2752.5,2751.7,6.07972]
[1724573344503,3.6332,2752.4,2751.7,6.07972]
[1724573344711,3.6332,2752.4,2751.7,7.785123]
[1724573344869,3.6332,2752.4,2751.7,11.419153]
[1724573345298,3.6332,2752.4,2751.8,3.63398]
[1724573346603,3.6332,2752.4,2751.7,7.785123]
[1724573347299,3.6332,2752.4,2751.7,11.419153]
[1724573347457,3.6332,2752.4,2751.8,1.1419153]
[1724573347659,5.96737,2752.5,2751.9,3.63382]
[1724573348117,3.7645529,2752.6,2751.9,7.26758]
[1724573348328,3.7645529,2752.6,2751.9,3.63376]
[1724573348693,3.7645529,2752.6,2751.9,3.63374]
[1724573349005,7.3975829,2752.6,2752.0,0.47756553]
[1724573349201,3.6331,2752.5,2752.0,0.47756553]